fUST/lending_fUST_20250611
["ID","MTS","AMOUNT","RATE_DAILY","PERIOD"]
[365365304,1749619844862,-501.56200485,0.00022973,2]
[365365306,1749619844872,-503.96951609,0.00022973,2]
[365365308,1749619844881,-13310.07562572,0.0002299,2]
[365365310,1749619844891,-178.0,0.00023,5]
[365365312,1749619844901,-178.0,0.00023,5]
[365365314,1749619844911,-178.0,0.00023,5]
[365365316,1749619844920,-67369.56474976,0.00023,2]
[365365318,1749619844931,-624.3157757,0.00023,2]
[365365320,1749619844941,-40260.56482803,0.00023,2]
[365365322,1749619844951,-10043.38789823,0.00023,2]
[365365324,1749619844960,-181167.89203179,0.00023,20]
[365365326,1749619844969,-1328.71905864,0.00023,2]
[365365328,1749619844979,-12971.49030353,0.00023,2]
[365365330,1749619844990,-460.0,0.00023013,4]
[365365332,1749619845000,-460.0,0.00023013,4]
[365365334,1749619845009,-460.0,0.00023013,4]
[365365336,1749619845020,-1199.27,0.00023013,4]
[365365338,1749619845030,-460.0,0.00023013,4]
[365365340,1749619845040,-460.0,0.00023013,4]
[365365342,1749619845049,-460.0,0.00023013,4]
[365365344,1749619845059,-3075.16,0.00023013,4]
[365365346,1749619845070,-1117.25,0.00023013,4]
[365365348,1749619845079,-1049.01,0.00023013,4]
[365365350,1749619845089,-617.52,0.00023013,4]
[365365352,1749619845099,-549.73,0.00023013,4]
[365365354,1749619845109,-1109.34,0.00023013,4]
[365365356,1749619845118,-950.17,0.00023013,4]
[365365358,1749619845128,-2214.18,0.00023013,4]
[365365360,1749619845138,-1746.51,0.00023013,4]
[365365362,1749619845148,-3038.81,0.00023013,4]
[365365364,1749619845158,-460.0,0.00023013,4]
[365365366,1749619845168,-520.81,0.00023013,4]
[365365367,1749619845177,-791.75,0.00023013,4]
[365365370,1749619845187,-2796.7,0.00023013,4]
[365365371,1749619845197,-2744.43,0.00023013,4]
[365365373,1749619845206,-460.0,0.00023013,4]
[365365375,1749619845217,-2798.24,0.00023013,4]
[365365377,1749619845226,-1141.43,0.00023013,4]
[365365379,1749619845236,-460.0,0.00023013,4]
[365365381,1749619845246,-903.96,0.00023013,4]
[365365383,1749619845256,-460.0,0.00023013,4]
[365365385,1749619845265,-1299.08,0.00023013,4]
[365365387,1749619845275,-518.72,0.00023013,4]
[365365389,1749619845284,-533.65,0.00023013,4]
[365365391,1749619845294,-460.0,0.00023013,4]
[365365393,1749619845303,-460.0,0.00023013,4]
[365365395,1749619845313,-500.0,0.00023099,2]
[365365397,1749619845322,-500.0,0.00023099,2]
[365365399,1749619845331,-500.0,0.00023099,2]
[365365401,1749619845340,-500.0,0.00023099,2]
[365365403,1749619845350,-500.0,0.00023099,2]
[365365405,1749619845360,-500.0,0.00023099,2]
[365365407,1749619845369,-500.0,0.00023099,2]
[365365409,1749619845379,-500.0,0.00023099,2]
[365365411,1749619845388,-500.0,0.00023099,2]
[365365413,1749619845398,-500.0,0.00023099,2]
[365365415,1749619845407,-500.0,0.00023099,2]
[365365417,1749619845416,-500.0,0.00023099,2]
[365365419,1749619845425,-500.0,0.00023099,2]
[365365421,1749619845435,-500.0,0.00023099,2]
[365365423,1749619845444,-500.0,0.00023099,2]
[365365425,1749619845453,-500.0,0.00023099,2]
[365365427,1749619845462,-618.854031,0.00023099,2]
[365365429,1749619845471,-500.0,0.00023099,2]
[365365431,1749619845481,-395.74,0.000231,7]
[365365433,1749619845490,-40661.25,0.000231,7]
[365365435,1749619845499,-1281.5,0.000231,7]
[365365437,1749619845509,-30354.62,0.000231,2]
[365365439,1749619845520,-160.0,0.000231,7]
[365365441,1749619845530,-1000.0,0.0002327,2]
[365365443,1749619845540,-1200.0,0.0002327,2]
[365365445,1749619845553,-460.0,0.00023287,4]
[365365447,1749619845563,-460.0,0.00023287,4]
[365365448,1749619845572,-550.0,0.00023287,4]
[365365450,1749619845582,-1199.27,0.00023287,4]
[365365452,1749619845593,-460.0,0.00023287,4]
[365365455,1749619845602,-460.0,0.00023287,4]
[365365456,1749619845611,-460.0,0.00023287,4]
[365365459,1749619845622,-3075.16,0.00023287,4]
[365365461,1749619845632,-1117.25,0.00023287,4]
[365365462,1749619845641,-1049.01,0.00023287,4]
[365365464,1749619845651,-617.52,0.00023287,4]
[365365466,1749619845660,-549.73,0.00023287,4]
[365365468,1749619845670,-1109.34,0.00023287,4]
[365365470,1749619845680,-950.17,0.00023287,4]
[365365472,1749619845689,-2214.18,0.00023287,4]
[365365474,1749619845699,-1746.51,0.00023287,4]
[365365476,1749619845708,-3038.81,0.00023287,4]
[365365478,1749619845719,-460.0,0.00023287,4]
[365365480,1749619845729,-520.81,0.00023287,4]
[365365482,1749619845739,-791.75,0.00023287,4]
[365365484,1749619845749,-2796.7,0.00023287,4]
[365365486,1749619845759,-2744.43,0.00023287,4]
[365365488,1749619845769,-460.0,0.00023287,4]
[365365490,1749619845778,-2798.24,0.00023287,4]
[365365492,1749619845788,-1141.43,0.00023287,4]
[365365494,1749619845798,-460.0,0.00023287,4]
[365365496,1749619845807,-903.96,0.00023287,4]
[365365497,1749619845817,-460.0,0.00023287,4]
[365365499,1749619845826,-1299.08,0.00023287,4]
[365365501,1749619845836,-533.65,0.00023287,4]
[365365503,1749619845845,-460.0,0.00023287,4]
[365365505,1749619845855,-539.72976915,0.00023287,4]
[365365507,1749619845865,-1061.67,0.00023288,2]
[365365509,1749619845874,-16239.38042583,0.00023309,2]
[365365511,1749619845884,-6066.69733587,0.000234,7]
[365365513,1749619845893,-6066.69733587,0.000234,7]
[365365515,1749619845903,-1005.052943,0.000234,2]
[365365517,1749619845913,-160.0,0.000234,7]
[365365519,1749619845923,-5000.0,0.00023407,2]
[365365521,1749619845932,-1133.57648132,0.00023429,2]
[365365523,1749619845942,-1000.0,0.00023521,2]
[365365525,1749619845951,-237.86102838,0.00023561,4]
[365365527,1749619845961,-460.0,0.00023561,4]
[365365529,1749619845971,-460.0,0.00023561,4]
[365365531,1749619845981,-1199.27,0.00023561,4]
[365365533,1749619845990,-460.0,0.00023561,4]
[365365535,1749619846000,-460.0,0.00023561,4]
[365365537,1749619846009,-460.0,0.00023561,4]
[365365539,1749619846019,-3075.16,0.00023561,4]
[365365541,1749619846030,-1117.25,0.00023561,4]
[365365543,1749619846039,-1049.01,0.00023561,4]
[365365545,1749619846049,-617.52,0.00023561,4]
[365365547,1749619846059,-549.73,0.00023561,4]
[365365549,1749619846069,-1109.34,0.00023561,4]
[365365551,1749619846079,-950.17,0.00023561,4]
[365365553,1749619846089,-2214.18,0.00023561,4]
[365365555,1749619846098,-1746.51,0.00023561,4]
[365365557,1749619846108,-3038.81,0.00023561,4]
[365365559,1749619846118,-460.0,0.00023561,4]
[365365561,1749619846128,-520.81,0.00023561,4]
[365365563,1749619846137,-791.75,0.00023561,4]
[365365564,1749619846148,-2796.7,0.00023561,4]
[365365566,1749619846158,-2744.43,0.00023561,4]
[365365568,1749619846167,-460.0,0.00023561,4]
[365365570,1749619846177,-2798.24,0.00023561,4]
[365365572,1749619846186,-1141.43,0.00023561,4]
[365365574,1749619846196,-517.58893313,0.00023561,4]
[365365576,1749619846205,-903.96,0.00023561,4]
[365365578,1749619846215,-460.0,0.00023561,4]
[365365580,1749619846225,-1299.08,0.00023561,4]
[365365582,1749619846234,-533.65,0.00023561,4]
[365365584,1749619846244,-460.0,0.00023561,4]
[365365586,1749619846253,-680.0,0.00023596,2]
[365365588,1749619846263,-201.68787317,0.0002368,2]
[365365590,1749619846272,-206382.29492601,0.000237,2]
[365365592,1749619846282,-152.918798,0.000237,7]
[365365594,1749619846292,-200.0,0.0002372,7]
[365365596,1749619846302,-205.857479,0.0002372,7]
[365365598,1749619846312,-165.80565524,0.00023726,2]
[365365600,1749619846321,-162.55636836,0.00023726,2]
[365365602,1749619846331,-587.0,0.0002373,2]
[365365604,1749619846340,-587.0,0.0002373,2]
[365365606,1749619846350,-179379.83815196,0.000238,3]
[365365608,1749619846360,-844.64040732,0.000238,3]
[365365610,1749619846369,-213.16534259,0.000238,3]
[365365612,1749619846379,-1500.0,0.00023818,2]
[365365614,1749619846389,-1210.524356,0.00023818,2]
[365365616,1749619846398,-460.0,0.00023835,4]
[365365618,1749619846407,-460.0,0.00023835,4]
[365365620,1749619846417,-1199.27,0.00023835,4]
[365365622,1749619846426,-460.0,0.00023835,4]
[365365624,1749619846435,-277.80085574,0.00023835,4]
[365365626,1749619846444,-460.0,0.00023835,4]
[365365628,1749619846454,-3075.16,0.00023835,4]
[365365630,1749619846464,-1117.25,0.00023835,4]
[365365632,1749619846473,-1049.01,0.00023835,4]
[365365634,1749619846483,-617.52,0.00023835,4]
[365365636,1749619846493,-549.73,0.00023835,4]
[365365638,1749619846502,-1109.34,0.00023835,4]
[365365639,1749619846512,-950.17,0.00023835,4]
[365365640,1749619846521,-2214.18,0.00023835,4]
[365365641,1749619846530,-1746.51,0.00023835,4]
[365365642,1749619846541,-3038.81,0.00023835,4]
[365365643,1749619846556,-460.0,0.00023835,4]
[365365644,1749619846567,-520.81,0.00023835,4]
[365365645,1749619846576,-791.75,0.00023835,4]
[365365646,1749619846586,-2796.7,0.00023835,4]
[365365647,1749619846596,-2744.43,0.00023835,4]
[365365648,1749619846606,-460.0,0.00023835,4]
[365365649,1749619846616,-2798.24,0.00023835,4]
[365365650,1749619846627,-1141.43,0.00023835,4]
[365365651,1749619846636,-903.96,0.00023835,4]
[365365652,1749619846647,-460.0,0.00023835,4]
[365365653,1749619846656,-1299.08,0.00023835,4]
[365365654,1749619846666,-533.65,0.00023835,4]
[365365655,1749619846676,-151.27,0.00023835,4]
[365365656,1749619846685,-1000.0,0.000239,2]
[365365657,1749619846695,-600.0,0.00023904,2]
[365365658,1749619846704,-783.838145,0.00023905,2]
[365365659,1749619846714,-800.0,0.00023916,2]
[365365661,1749619846724,-5000.0,0.00023955,2]
[365365663,1749619846733,-1257.589503,0.00023993,3]
[365365665,1749619846742,-178.0,0.00024,7]
[365365667,1749619846751,-158.35,0.00024,2]
[365365669,1749619846760,-160.0,0.00024,7]
[365365670,1749619846769,-229.71724145,0.00024,7]
[365365672,1749619846779,-835.03886221,0.00024,7]
[365365674,1749619846788,-424.19973472,0.00024,7]
[365365676,1749619846798,-160.0,0.00024,7]
[365365678,1749619846808,-1133.57648132,0.00024057,2]
[365365680,1749619846817,-1500.0,0.00024068,2]
[365365682,1749619846826,-30354.62,0.000241,2]
[365365684,1749619846836,-196.09,0.00024108,2]
[365365686,1749619846845,-460.0,0.00024109,4]
[365365688,1749619846855,-460.0,0.00024109,4]
[365365690,1749619846865,-1199.27,0.00024109,4]
[365365692,1749619846875,-460.0,0.00024109,4]
[365365694,1749619846883,-460.0,0.00024109,4]
[365365696,1749619846893,-3075.16,0.00024109,4]
[365365698,1749619846902,-1117.25,0.00024109,4]
[365365700,1749619846912,-1049.01,0.00024109,4]
[365365702,1749619846921,-617.52,0.00024109,4]
[365365704,1749619846930,-549.73,0.00024109,4]
[365365706,1749619846940,-1109.34,0.00024109,4]
[365365708,1749619846950,-950.17,0.00024109,4]
[365365709,1749619846959,-2214.18,0.00024109,4]
[365365711,1749619846969,-1746.51,0.00024109,4]
[365365713,1749619846979,-3038.81,0.00024109,4]
[365365715,1749619846989,-520.81,0.00024109,4]
[365365717,1749619846999,-791.75,0.00024109,4]
[365365719,1749619847008,-2796.7,0.00024109,4]
[365365721,1749619847018,-2744.43,0.00024109,4]
[365365723,1749619847028,-460.0,0.00024109,4]
[365365725,1749619847037,-2798.24,0.00024109,4]
[365365727,1749619847048,-1141.43,0.00024109,4]
[365365729,1749619847057,-903.96,0.00024109,4]
[365365731,1749619847068,-460.0,0.00024109,4]
[365365733,1749619847077,-1299.08,0.00024109,4]
[365365735,1749619847087,-533.65,0.00024109,4]
[365365737,1749619847097,-845.0,0.00024117,2]
[365365739,1749619847106,-800.0,0.00024122,2]
[365365741,1749619847115,-680.0,0.00024152,2]
[365365743,1749619847125,-969.196,0.00024153,2]
[365365754,1749619847222,-2160.0,0.00024153,2]
[365365756,1749619847232,-601.74494822,0.00024153,2]
[365365758,1749619847241,-6434.45288652,0.00024156,3]
[365365760,1749619847250,-1745.0,0.00024157,3]
[365365762,1749619847260,-1745.0,0.00024157,3]
[365365764,1749619847270,-1745.0,0.00024157,3]
[365365766,1749619847279,-1745.0,0.00024157,3]
[365365768,1749619847288,-1745.0,0.00024157,3]
[365365770,1749619847297,-1745.0,0.00024157,3]
[365365772,1749619847307,-171.0,0.00024157,3]
[365365774,1749619847316,-271.03904922,0.00024157,3]
[365365776,1749619847326,-1745.0,0.00024157,3]
[365365778,1749619847335,-1745.0,0.00024157,3]
[365365780,1749619847345,-1745.0,0.00024157,3]
[365365782,1749619847354,-1745.0,0.00024157,3]
[365365784,1749619847364,-1745.0,0.00024157,3]
[365365786,1749619847374,-155.43081847,0.00024157,3]
[365365788,1749619847384,-1745.0,0.00024157,3]
[365365790,1749619847393,-1745.0,0.00024157,3]
[365365792,1749619847403,-1745.0,0.00024157,3]
[365365794,1749619847412,-1745.0,0.00024157,3]
[365365796,1749619847421,-1745.0,0.00024157,3]
[365365798,1749619847430,-1745.0,0.00024157,3]
[365365799,1749619847439,-1745.0,0.00024157,3]
[365365800,1749619847449,-1745.0,0.00024157,3]
[365365801,1749619847458,-1745.0,0.00024157,3]
[365365802,1749619847467,-1745.0,0.00024157,3]
[365365803,1749619847476,-1745.0,0.00024157,3]
[365365804,1749619847485,-1745.0,0.00024157,3]
[365365806,1749619847494,-160.0,0.00024157,3]
[365365808,1749619847504,-1030.1030757,0.00024157,3]
[365365810,1749619847513,-151.0,0.00024157,3]
[365365812,1749619847523,-152.8942424,0.00024157,3]
[365365814,1749619847532,-317.0,0.00024157,3]
[365365816,1749619847542,-317.0,0.00024157,3]
[365365818,1749619847554,-317.0,0.00024157,3]
[365365820,1749619847563,-317.0,0.00024157,3]
[365365822,1749619847572,-317.0,0.00024157,3]
[365365824,1749619847583,-317.0,0.00024157,3]
[365365826,1749619847593,-317.0,0.00024157,3]
[365365828,1749619847601,-317.0,0.00024157,3]
[365365830,1749619847611,-317.0,0.00024157,3]
[365365832,1749619847621,-317.0,0.00024157,3]
[365365834,1749619847630,-322.24757634,0.00024157,3]
[365365836,1749619847640,-160.0,0.0002416,3]
[365365838,1749619847650,-229.71724145,0.0002416,3]
[365365840,1749619847659,-835.03886221,0.0002416,3]
[365365842,1749619847668,-424.19973472,0.0002416,3]
[365365844,1749619847677,-160.0,0.0002416,3]
[365365846,1749619847688,-160.0,0.0002416,3]
[365365848,1749619847697,-395.74,0.000242,7]
[365365850,1749619847707,-178.0,0.000242,7]
[365365852,1749619847716,-178.0,0.000242,7]
[365365854,1749619847726,-500.0,0.000242,9]
[365365856,1749619847736,-151.0,0.000242,7]
[365365858,1749619847745,-151.0,0.000242,6]
[365365860,1749619847755,-835.03886221,0.000242,3]
[365365862,1749619847764,-424.19973472,0.000242,3]
[365365864,1749619847773,-160.0,0.000242,3]
[365365866,1749619847782,-160.0,0.000242,3]
[365365868,1749619847792,-11186.79680739,0.000242,3]
[365365870,1749619847802,-215.0738,0.00024228,2]
[365365872,1749619847812,-845.0,0.0002425,2]
[365365874,1749619847822,-1327.08,0.00024259,2]
[365365876,1749619847831,-40661.25,0.000243,7]
[365365878,1749619847841,-845.0,0.00024325,2]
[365365880,1749619847851,-680.0,0.00024334,2]
[365365882,1749619847860,-500.0,0.00024352,2]
[365365884,1749619847869,-1000.0,0.00024366,2]
[365365886,1749619847879,-465.4712377,0.00024382,2]
[365365888,1749619847889,-460.0,0.00024383,4]
[365365890,1749619847898,-460.0,0.00024383,4]
[365365892,1749619847908,-1199.27,0.00024383,4]
[365365894,1749619847917,-460.0,0.00024383,4]
[365365896,1749619847926,-460.0,0.00024383,4]
[365365898,1749619847936,-3075.16,0.00024383,4]
[365365900,1749619847945,-1117.25,0.00024383,4]
[365365902,1749619847954,-1049.01,0.00024383,4]
[365365904,1749619847964,-617.52,0.00024383,4]
[365365906,1749619847973,-549.73,0.00024383,4]
[365365908,1749619847983,-1109.34,0.00024383,4]
[365365910,1749619847993,-950.17,0.00024383,4]
[365365912,1749619848002,-2214.18,0.00024383,4]
[365365914,1749619848012,-1746.51,0.00024383,4]
[365365916,1749619848022,-3038.81,0.00024383,4]
[365365918,1749619848033,-520.81,0.00024383,4]
[365365920,1749619848043,-791.75,0.00024383,4]
[365365922,1749619848054,-2796.7,0.00024383,4]
[365365924,1749619848064,-2744.43,0.00024383,4]
[365365926,1749619848075,-460.0,0.00024383,4]
[365365928,1749619848085,-2798.24,0.00024383,4]
[365365930,1749619848095,-1141.43,0.00024383,4]
[365365932,1749619848104,-903.96,0.00024383,4]
[365365934,1749619848114,-460.0,0.00024383,4]
[365365936,1749619848124,-1299.08,0.00024383,4]
[365365938,1749619848134,-533.65,0.00024383,4]
[365365940,1749619848143,-39450.0,0.000244,7]
[365365942,1749619848153,-160.0,0.000244,7]
[365365944,1749619848167,-1000.0,0.000244,2]
[365365946,1749619848178,-501.75778069,0.00024419,9]
[365365948,1749619848188,-680.0,0.00024446,2]
[365365950,1749619848199,-153.31626281,0.0002445,7]
[365365953,1749619848210,-845.0,0.0002447,2]
[365365954,1749619848221,-280.4839101,0.00024482,2]
[365365957,1749619848231,-214.3146005,0.00024483,2]
[365365958,1749619848241,-109109.45303637,0.00024483,7]
[365365971,1749619848350,-1504.2,0.00021369,4]
[365365973,1749619848359,-241.78416468,0.00024483,7]
[365365975,1749619848371,-4444.68042514,0.00024483,7]
[365365977,1749619848382,-755.8897517,0.00024483,7]
[365365979,1749619848393,-5242.44218805,0.00024483,7]
[365365982,1749619848405,-2962.65,0.00024483,7]
[365366856,1749619916849,-162.27628913,0.00018,2]
[365366857,1749619921162,-170.72371087,0.00018,2]
[365366865,1749620074339,2167.38,0.00024975,60]
[365366954,1749620859222,200.0,0.00024658,120]
[365366956,1749620896417,168.916577,0.00013699,2]
[365366957,1749620918945,200.0,0.00024658,120]
[365366997,1749621032641,-770.0320289,0.00019864,2]
[365367049,1749621038667,-4678.8379711,0.00019864,2]
[365367051,1749621038677,-257.35,0.00020125,2]
[365367053,1749621038687,-783.838145,0.00020178,2]
[365367054,1749621038696,-168.916577,0.00020187,2]
[365367056,1749621038706,-166.0,0.00020274,2]
[365367058,1749621038716,-300.0,0.00020299,2]
[365367060,1749621038725,-300.0,0.00020299,2]
[365367062,1749621038735,-24900.0,0.000203,2]
[365367063,1749621038744,-2179.93183673,0.000209,4]
[365367065,1749621038754,-800.0,0.00020912,2]
[365367067,1749621038763,-2179.93183661,0.00021038,4]
[365367069,1749621038772,-500.0,0.00021064,2]
[365367071,1749621038782,-514.69,0.00021083,2]
[365367072,1749621038791,-188.66,0.00021094,2]
[365367074,1749621038800,-161.91178727,0.00021094,2]
[365367076,1749621038810,-317.05023977,0.00021095,4]
[365367077,1749621038819,-360.0,0.00021095,4]
[365367078,1749621038828,-460.0,0.00021095,4]
[365367079,1749621038838,-460.0,0.00021095,4]
[365367080,1749621038848,-310.0,0.00021095,4]
[365367081,1749621038857,-460.0,0.00021095,4]
[365367082,1749621038867,-443.92733435,0.00021095,4]
[365367083,1749621038877,-460.0,0.00021095,4]
[365367084,1749621038886,-471.08935426,0.00021095,4]
[365367085,1749621038896,-460.0,0.00021095,4]
[365367086,1749621038914,-582.83745152,0.00021095,4]
[365367087,1749621038935,-460.0,0.00021095,4]
[365367088,1749621038957,-460.0,0.00021095,4]
[365367089,1749621038969,-460.0,0.00021095,4]
[365367090,1749621038979,-460.0,0.00021095,4]
[365367091,1749621038990,-500.0,0.00021095,4]
[365367092,1749621038999,-373.67108666,0.00021095,4]
[365367093,1749621039010,-460.0,0.00021095,4]
[365367094,1749621039020,-460.0,0.00021095,4]
[365367095,1749621039031,-353.73860318,0.00021095,4]
[365367096,1749621039042,-460.0,0.00021095,4]
[365367097,1749621039053,-460.0,0.00021095,4]
[365367098,1749621039063,-340.94274445,0.00021095,4]
[365367099,1749621039073,-288.13166638,0.00021095,4]
[365367100,1749621039082,-460.0,0.00021095,4]
[365367101,1749621039093,-440.0,0.00021095,4]
[365367102,1749621039103,-460.0,0.00021095,4]
[365367103,1749621039112,-460.0,0.00021095,4]
[365367104,1749621039122,-460.0,0.00021095,4]
[365367105,1749621039131,-460.0,0.00021095,4]
[365367106,1749621039140,-460.0,0.00021095,4]
[365367107,1749621039149,-460.0,0.00021095,4]
[365367108,1749621039159,-460.0,0.00021095,4]
[365367109,1749621039168,-460.0,0.00021095,4]
[365367110,1749621039177,-534.5852295,0.00021095,4]
[365367111,1749621039187,-460.0,0.00021095,4]
[365367112,1749621039197,-460.0,0.00021095,4]
[365367113,1749621039206,-460.0,0.00021095,4]
[365367114,1749621039216,-460.0,0.00021095,4]
[365367115,1749621039225,-460.0,0.00021095,4]
[365367116,1749621039235,-423.59725457,0.00021095,4]
[365367117,1749621039244,-460.0,0.00021095,4]
[365367118,1749621039253,-390.0,0.00021095,4]
[365367119,1749621039263,-220.32715743,0.00021095,4]
[365367120,1749621039272,-460.0,0.00021095,4]
[365367121,1749621039281,-460.0,0.00021095,4]
[365367122,1749621039291,-300.0,0.00021095,4]
[365367123,1749621039300,-179.78218547,0.00021095,4]
[365367124,1749621039310,-460.0,0.00021095,4]
[365367125,1749621039319,-557.13,0.00021095,4]
[365367126,1749621039328,-430.0,0.00021095,4]
[365367127,1749621039338,-460.0,0.00021095,4]
[365367128,1749621039348,-420.0,0.00021095,4]
[365367129,1749621039357,-460.0,0.00021095,4]
[365367130,1749621039366,-460.0,0.00021095,4]
[365367131,1749621039376,-460.0,0.00021095,4]
[365367132,1749621039385,-460.0,0.00021095,4]
[365367133,1749621039394,-460.0,0.00021095,4]
[365367134,1749621039404,-460.0,0.00021095,4]
[365367135,1749621039413,-400.0,0.00021095,4]
[365367136,1749621039423,-460.0,0.00021095,4]
[365367137,1749621039432,-186.09953997,0.00021095,4]
[365367138,1749621039441,-460.0,0.00021095,4]
[365367139,1749621039450,-380.0,0.00021095,4]
[365367140,1749621039460,-460.0,0.00021095,4]
[365367141,1749621039469,-460.0,0.00021095,4]
[365367142,1749621039479,-460.0,0.00021095,4]
[365367143,1749621039489,-440.0,0.00021095,4]
[365367144,1749621039498,-504.44,0.00021095,4]
[365367145,1749621039507,-460.0,0.00021095,4]
[365367146,1749621039517,-460.0,0.00021095,4]
[365367147,1749621039526,-460.0,0.00021095,4]
[365367148,1749621039535,-460.0,0.00021095,4]
[365367149,1749621039544,-460.0,0.00021095,4]
[365367150,1749621039553,-460.0,0.00021095,4]
[365367151,1749621039562,-460.0,0.00021095,4]
[365367152,1749621039571,-460.0,0.00021095,4]
[365367153,1749621039581,-477.30196012,0.00021095,4]
[365367154,1749621039590,-460.0,0.00021095,4]
[365367155,1749621039600,-460.0,0.00021095,4]
[365367156,1749621039609,-500.0,0.00021095,4]
[365367157,1749621039618,-2794.46,0.00021095,4]
[365367158,1749621039627,-460.0,0.00021095,4]
[365367159,1749621039636,-460.0,0.00021095,4]
[365367160,1749621039645,-460.0,0.00021095,4]
[365367161,1749621039654,-329.80507402,0.00021095,4]
[365367162,1749621039663,-460.0,0.00021095,4]
[365367163,1749621039672,-460.0,0.00021095,4]
[365367164,1749621039681,-460.0,0.00021095,4]
[365367165,1749621039690,-1128.57,0.00021095,4]
[365367166,1749621039699,-460.0,0.00021095,4]
[365367167,1749621039709,-440.0,0.00021095,4]
[365367168,1749621039717,-965.35,0.00021095,4]
[365367169,1749621039836,-481.49,0.00021095,4]
[365367170,1749621039846,-460.0,0.00021095,4]
[365367171,1749621039855,-460.0,0.00021095,4]
[365367172,1749621039864,-584.39,0.00021095,4]
[365367173,1749621039873,-560.62152779,0.00021095,4]
[365367174,1749621039882,-460.0,0.00021095,4]
[365367175,1749621039891,-380.0,0.00021095,4]
[365367176,1749621039900,-400.0,0.00021095,4]
[365367177,1749621039909,-440.0,0.00021095,4]
[365367178,1749621039918,-460.0,0.00021095,4]
[365367179,1749621039930,-460.0,0.00021095,4]
[365367180,1749621039939,-460.0,0.00021095,4]
[365367181,1749621039949,-481.02,0.00021095,4]
[365367182,1749621039958,-460.0,0.00021095,4]
[365367183,1749621039967,-460.0,0.00021095,4]
[365367184,1749621039977,-380.0,0.00021095,4]
[365367185,1749621039986,-460.0,0.00021095,4]
[365367186,1749621039995,-460.0,0.00021095,4]
[365367187,1749621040005,-460.0,0.00021095,4]
[365367188,1749621040014,-460.0,0.00021095,4]
[365367189,1749621040023,-460.0,0.00021095,4]
[365367190,1749621040033,-483.88,0.00021095,4]
[365367191,1749621040042,-366.78305919,0.00021095,4]
[365367192,1749621040051,-460.0,0.00021095,4]
[365367193,1749621040060,-400.0,0.00021095,4]
[365367194,1749621040069,-460.0,0.00021095,2]
[365367195,1749621040078,-2733.38,0.00021095,4]
[365367196,1749621040087,-939.22,0.00021095,4]
[365367197,1749621040096,-420.0,0.00021095,4]
[365367198,1749621040107,-790.34,0.00021095,4]
[365367200,1749621040116,-460.0,0.00021095,4]
[365367201,1749621040125,-1546.53,0.00021095,4]
[365367203,1749621040134,-460.0,0.00021095,4]
[365367205,1749621040143,-390.0,0.00021095,4]
[365367207,1749621040152,-1073.56,0.00021095,4]
[365367209,1749621040162,-1955.74,0.00021095,4]
[365367211,1749621040171,-410.0,0.00021095,4]
[365367213,1749621040180,-460.0,0.00021095,4]
[365367215,1749621040189,-460.0,0.00021095,4]